bitfinex/quotes_ETHUSD_20250620
["timestamp","ask_amount","ask_price","bid_price","bid_amount"]
[1750384762121,27.05708382,2530.3,2530.2,1.33731589]
[1750384763893,27.05705697,2530.3,2530.2,1.33731589]
[1750384764097,36.55305697,2530.3,2530.2,1.33731589]
[1750384764298,40.50632778,2530.3,2530.2,1.33731589]
[1750384765428,40.13552334,2530.3,2530.2,1.33731589]
[1750384765614,31.72222896,2530.3,2530.2,1.39531589]
[1750384765812,39.75322896,2530.3,2530.2,1.39531589]
[1750384767129,39.75322708,2530.3,2530.2,1.39531589]
[1750384767837,39.38242334,2530.3,2530.2,1.39531589]
[1750384768142,39.7532184,2530.3,2530.2,1.39531589]
[1750384768600,39.38242334,2530.3,2530.2,1.39531589]
[1750384769445,39.75321407,2530.3,2530.2,1.39531589]
[1750384769959,21.80182767,2530.3,2530.2,1.39531589]
[1750384770244,25.75392821,2530.3,2530.2,1.39531589]
[1750384771508,25.75392336,2530.3,2530.2,1.39531589]
[1750384772044,17.72292336,2530.3,2530.2,1.39531589]
[1750384772237,25.75392336,2530.3,2530.2,1.39531589]
[1750384772551,25.75392908,2530.3,2530.2,1.39531589]
[1750384773348,25.75392901,2530.3,2530.2,1.39531589]
[1750384774366,25.75392766,2530.3,2530.2,1.39531589]
[1750384777161,25.75393703,2530.3,2530.2,1.39531589]
[1750384777650,25.75394114,2530.3,2530.2,1.39531589]
[1750384778452,21.8018406,2530.3,2530.2,1.39531589]
[1750384779850,21.43105048,2530.3,2530.2,1.39531589]
[1750384780066,25.75392861,2530.3,2530.2,1.39531589]
[1750384781063,21.43105048,2530.3,2530.2,1.39531589]
[1750384781285,25.75393694,2530.3,2530.2,1.39531589]
[1750384782168,21.8018364,2530.3,2530.2,1.39531589]
[1750384782810,21.80183467,2530.3,2530.2,1.39531589]
[1750384783172,21.80183143,2530.3,2530.2,1.39531589]
[1750384785624,21.80182452,2530.3,2530.2,1.39531589]
[1750384786200,21.43105048,2530.3,2530.2,1.39531589]
[1750384786428,25.75391622,2530.3,2530.2,1.39531589]
[1750384786603,21.79881568,2530.3,2530.2,1.39531589]
[1750384786798,13.77081568,2530.3,2530.2,1.39531589]
[1750384787004,21.79881568,2530.3,2530.2,1.39531589]
[1750384787230,25.75091622,2530.3,2530.2,1.39531589]
[1750384787730,21.79881568,2530.3,2530.2,1.39531589]
[1750384788330,21.42805048,2530.3,2530.2,1.39531589]
[1750384788531,21.79880601,2530.3,2530.2,1.39531589]
[1750384788733,13.77080601,2530.3,2530.2,1.39531589]
[1750384788896,3.77080601,2530.3,2530.2,1.39531589]
[1750384789101,11.79780601,2530.3,2530.2,6.17597262]
[1750384789325,11.79778215,2530.3,2530.2,6.17597262]
[1750384789539,11.79778215,2530.3,2530.2,2.22371589]
[1750384791044,11.79759536,2530.3,2530.2,2.22371589]
[1750384791467,11.42705048,2530.3,2530.2,2.22371589]
[1750384791602,11.79759531,2530.3,2530.2,2.22371589]
[1750384793050,11.79759531,2530.3,2530.2,6.17597262]
[1750384793220,11.79750759,2530.3,2530.2,6.17597262]
[1750384794055,11.79747538,2530.3,2530.2,6.17597262]
[1750384795952,11.79743969,2530.3,2530.2,6.17597262]
[1750384796304,11.79743969,2530.3,2530.2,2.22371589]
[1750384796650,11.79743969,2530.3,2530.2,6.17597262]
[1750384796809,11.79743757,2530.3,2530.2,6.17597262]
[1750384797153,11.79743793,2530.3,2530.2,6.17597262]
[1750384798322,11.79743793,2530.3,2530.2,2.22371589]
[1750384798912,11.7974251,2530.3,2530.2,2.22371589]
[1750384799758,11.79742359,2530.3,2530.2,2.22371589]
[1750384800213,11.79742359,2530.3,2530.2,6.17597262]
[1750384800628,5.40642359,2530.3,2530.2,6.17597262]
[1750384800957,11.79642359,2530.3,2530.2,1.39531589]
[1750384801147,11.79642359,2530.3,2530.2,5.34757262]
[1750384801515,11.79642359,2530.3,2530.2,1.39531589]
[1750384801712,3.77042359,2530.3,2530.2,7.17386056]
[1750384802024,5.40642359,2530.3,2530.2,7.17386056]
[1750384802208,11.79642359,2530.3,2530.2,7.17386056]
[1750384802551,11.79637986,2530.3,2530.2,7.17386056]
[1750384803310,3.77037986,2530.3,2530.2,7.17386056]
[1750384803510,11.79637986,2530.3,2530.2,7.17386056]
[1750384803750,3.77037986,2530.3,2530.2,7.17386056]
[1750384803910,11.79637986,2530.3,2530.2,7.17386056]
[1750384804111,11.42505048,2530.3,2530.2,7.17386056]
[1750384804345,11.79538139,2530.3,2530.2,12.71797552]
[1750384804547,5.40638139,2530.3,2530.2,12.67845667]
[1750384804746,11.79538139,2530.3,2530.2,12.67845667]
[1750384805252,11.79527447,2530.3,2530.2,12.67845667]
[1750384805549,11.79527338,2530.3,2530.2,12.67845667]
[1750384806043,3.77027338,2530.3,2530.2,12.67845667]
[1750384806413,11.79527338,2530.3,2530.2,12.67845667]
[1750384806731,11.79526838,2530.3,2530.2,12.67845667]
[1750384807868,11.42505048,2530.3,2530.2,12.67845667]
[1750384808064,11.79522553,2530.3,2530.2,12.67845667]
[1750384808581,3.77022553,2530.3,2530.2,12.67845667]
[1750384808875,11.79522553,2530.3,2530.2,12.67845667]
[1750384809166,3.77022553,2530.3,2530.2,12.67845667]
[1750384809371,11.79522553,2530.3,2530.2,12.67845667]
[1750384809866,11.79522553,2530.3,2530.2,7.17386056]
[1750384810031,11.79081773,2530.3,2530.2,7.17386056]
[1750384810765,11.790823,2530.3,2530.2,7.17386056]
[1750384811165,3.765823,2530.3,2530.2,7.17386056]
[1750384811351,11.790823,2530.3,2530.2,7.17386056]
[1750384811559,11.79080314,2530.3,2530.2,7.17386056]
[1750384812267,11.78780314,2530.3,2530.2,7.17386056]
[1750384812773,11.78780314,2530.3,2530.2,7.21337915]
[1750384812943,11.78782239,2530.3,2530.2,7.21337915]
[1750384813273,11.41770308,2530.3,2530.2,7.21337915]
[1750384813435,11.78782224,2530.3,2530.2,7.21337915]
[1750384813640,11.78787319,2530.3,2530.2,7.17386056]
[1750384814273,3.76587319,2530.3,2530.2,7.17386056]
[1750384814438,10.15387319,2530.3,2530.2,7.17386056]
[1750384815854,10.15391293,2530.3,2530.2,7.17386056]
[1750384816455,10.15390699,2530.3,2530.2,7.17386056]
[1750384817572,10.15390691,2530.3,2530.2,7.17386056]
[1750384818972,10.15390691,2530.3,2530.2,1.33731589]
[1750384819273,14.86495685,2530.3,2530.2,1.33731589]
[1750384819662,14.49460362,2530.3,2530.2,1.33731589]
[1750384819973,30.16076946,2530.3,2530.2,1.33731589]
[1750384820155,31.0021695,2530.3,2530.2,1.33731589]
[1750384820355,34.66098153,2530.3,2530.2,1.33731589]
[1750384821266,34.66099353,2530.3,2530.2,1.33731589]
[1750384821466,15.14508485,2530.3,2530.2,1.33731589]
[1750384821680,17.11816373,2530.3,2530.2,1.33731589]
[1750384821996,17.11816855,2530.3,2530.2,1.33731589]
[1750384822474,9.09716855,2530.3,2530.2,1.33731589]
[1750384822774,17.11904383,2530.3,2530.2,1.33731589]
[1750384823167,17.12004383,2530.3,2530.2,1.33731589]
[1750384824189,17.12003272,2530.3,2530.2,1.33731589]
[1750384825074,17.11992702,2530.3,2530.2,1.33731589]
[1750384826495,16.74980362,2530.3,2530.2,1.33731589]
[1750384826668,27.11989602,2530.3,2530.2,1.33731589]
[1750384827000,27.11989609,2530.3,2530.2,1.33731589]
[1750384827517,26.74980362,2530.3,2530.2,1.33731589]
[1750384827654,27.11983052,2530.3,2530.2,1.33731589]
[1750384828094,27.11978879,2530.3,2530.2,1.33731589]
[1750384829096,27.11978672,2530.3,2530.2,1.33731589]
[1750384829689,27.11978878,2530.3,2530.2,1.33731589]
[1750384829898,26.74980362,2530.3,2530.2,1.33731589]
[1750384830099,27.1197913,2530.3,2530.2,1.33731589]
[1750384830304,27.11974256,2530.3,2530.2,1.33731589]
[1750384830471,16.22964202,2530.3,2530.2,1.33731589]
[1750384830669,21.78864202,2530.3,2530.2,1.33731589]
[1750384830867,21.78863637,2530.3,2530.2,1.33731589]
[1750384831178,21.78863501,2530.3,2530.2,1.33731589]
[1750384831392,21.7886277,2530.3,2530.2,1.39621589]
[1750384831583,13.7656277,2530.3,2530.2,1.39621589]
[1750384831774,21.7876277,2530.3,2530.2,5.34847262]
[1750384832100,21.78757379,2530.3,2530.2,5.34847262]
[1750384832463,11.78757379,2530.3,2530.2,5.34847262]
[1750384832791,21.78756969,2530.3,2530.2,5.34847262]
[1750384832991,13.76556969,2530.3,2530.2,5.34847262]
[1750384833163,21.78756969,2530.3,2530.2,6.36008067]
[1750384833565,21.78759865,2530.3,2530.2,6.36008067]
[1750384834020,21.78759097,2530.3,2530.2,6.36008067]
[1750384834167,15.40059097,2530.3,2530.2,6.36008067]
[1750384834522,21.78757339,2530.3,2530.2,6.36008067]
[1750384834793,15.40057339,2530.3,2530.2,7.17078067]
[1750384834998,21.78757339,2530.3,2530.2,7.17078067]
[1750384835568,5.40057339,2530.3,2530.2,7.17078067]
[1750384835763,11.78757339,2530.3,2530.2,7.17078067]
[1750384838301,11.78754044,2530.3,2530.2,7.17078067]
[1750384838517,11.78754105,2530.3,2530.2,7.17078067]
[1750384840402,11.7875614,2530.3,2530.2,7.17078067]
[1750384840888,11.78756115,2530.3,2530.2,7.17078067]
[1750384842401,11.41770308,2530.3,2530.2,7.17078067]
[1750384842588,11.78756463,2530.3,2530.2,7.17078067]
[1750384844802,11.78756463,2530.3,2530.2,6.36008067]
[1750384845382,11.78764044,2530.3,2530.2,6.36008067]
[1750384845803,11.78767387,2530.3,2530.2,6.36008067]
[1750384846319,11.78767263,2530.3,2530.2,6.36008067]
[1750384846913,11.78766798,2530.3,2530.2,6.36008067]
[1750384848276,11.78767028,2530.3,2530.2,6.36008067]
[1750384849355,11.41770308,2530.3,2530.2,6.36008067]
[1750384849519,11.78767104,2530.3,2530.2,6.36008067]
[1750384850264,11.78762319,2530.3,2530.2,6.36008067]
[1750384850546,11.41770308,2530.3,2530.2,6.36008067]
[1750384850844,11.78762324,2530.3,2530.2,6.36008067]
[1750384851157,11.78764412,2530.3,2530.2,6.36008067]
[1750384851555,11.78764297,2530.3,2530.2,6.36008067]
[1750384851705,11.78764277,2530.3,2530.2,6.36008067]
[1750384852041,11.78764267,2530.3,2530.2,6.36008067]
[1750384852240,5.40064267,2530.3,2530.2,6.36008067]
[1750384852438,11.41570308,2530.3,2530.2,6.36008067]
[1750384852604,11.78565031,2530.3,2530.2,6.36008067]
[1750384852839,11.41570308,2530.3,2530.2,5.34717262]
[1750384853136,11.78565656,2530.3,2530.2,1.39491589]
[1750384853966,11.78569112,2530.3,2530.2,1.39491589]
[1750384854126,11.78569112,2530.3,2530.2,5.34717262]
[1750384854881,11.78569112,2530.3,2530.2,6.35943036]
[1750384857665,11.78589496,2530.3,2530.2,6.35943036]
[1750384859361,11.41570308,2530.3,2530.2,6.35943036]
[1750384859565,11.78592664,2530.3,2530.2,6.35943036]
[1750384860982,11.78621611,2530.3,2530.2,6.35943036]
[1750384861139,11.78621638,2530.3,2530.2,6.35943036]
[1750384861781,11.78621638,2530.3,2530.2,1.33731589]
[1750384862076,12.56321638,2530.3,2530.2,1.33731589]
[1750384863082,11.78621638,2530.3,2530.2,1.39491589]
[1750384864186,11.41570308,2530.3,2530.2,1.39491589]
[1750384864340,11.78648601,2530.3,2530.2,1.39491589]
[1750384865287,11.78648521,2530.3,2530.2,1.39491589]
[1750384866081,11.78648521,2530.3,2530.2,5.34717262]
[1750384867479,11.78648958,2530.3,2530.2,5.34717262]
[1750384868178,11.78649162,2530.3,2530.2,5.34717262]
[1750384869056,11.78650491,2530.3,2530.2,5.34717262]
[1750384869483,11.78650297,2530.3,2530.2,5.34717262]
[1750384869688,3.76650297,2530.3,2530.2,5.34717262]
[1750384869889,11.78248212,2530.3,2530.2,7.04056305]
[1750384870450,11.78243986,2530.3,2530.2,7.04056305]
[1750384870775,11.78243871,2530.3,2530.2,7.04056305]
[1750384870940,11.41170308,2530.3,2530.2,7.04056305]
[1750384871145,11.78244394,2530.3,2530.2,7.04056305]
[1750384871771,11.78244829,2530.3,2530.2,7.04056305]
[1750384872168,11.78245048,2530.3,2530.2,7.04056305]
[1750384872364,11.78245048,2530.3,2530.2,3.08830632]
[1750384873171,11.41170308,2530.3,2530.2,3.08830632]
[1750384873350,11.78246684,2530.3,2530.2,3.08830632]
[1750384873674,11.78246684,2530.3,2530.2,1.39491589]
[1750384873868,11.78246741,2530.3,2530.2,1.39491589]
[1750384874071,11.78246741,2530.3,2530.2,1.33731589]
[1750384874586,11.78247107,2530.3,2530.2,1.39771589]
[1750384874789,11.78246872,2530.3,2530.2,1.39771589]
[1750384874987,11.78246881,2530.3,2530.2,1.39771589]
[1750384875161,11.78246881,2530.3,2530.2,1.33731589]
[1750384875380,11.78246621,2530.3,2530.2,1.33731589]
[1750384876379,11.78246534,2530.3,2530.2,1.39771589]
[1750384876775,11.78246989,2530.3,2530.2,1.33731589]
[1750384877604,11.78246986,2530.3,2530.2,1.39771589]
[1750384879017,11.41170308,2530.3,2530.2,1.39771589]
[1750384879318,11.78246201,2530.3,2530.2,1.39771589]
[1750384879617,11.41170308,2530.3,2530.2,1.39771589]
[1750384879819,11.7824627,2530.3,2530.2,1.39771589]
[1750384880826,11.41170308,2530.3,2530.2,1.39771589]
[1750384880996,15.73455676,2530.3,2530.2,1.39771589]
[1750384881193,15.73455676,2530.3,2530.2,1.33731589]
[1750384881583,15.36380362,2530.3,2530.2,1.33731589]
[1750384882009,15.73456048,2530.3,2530.2,1.33731589]
[1750384882225,15.73456072,2530.3,2530.2,1.33731589]
[1750384882597,15.73456055,2530.3,2530.2,1.33731589]
[1750384883486,15.73455383,2530.3,2530.2,1.33731589]
[1750384885741,27.78149749,2530.3,2530.2,1.33731589]
[1750384886632,29.14546925,2530.3,2530.2,1.33731589]
[1750384886938,59.14546925,2530.3,2530.2,0.6943181]
[1750384887226,59.14551855,2530.3,2530.2,0.6943181]
[1750384887614,59.14553376,2530.3,2530.2,0.6943181]
[1750384887813,59.14553286,2530.3,2530.2,0.6943181]
[1750384888014,59.14553471,2530.3,2530.2,0.6943181]
[1750384888214,58.77474728,2530.3,2530.2,0.6943181]
[1750384888432,59.14553419,2530.3,2530.2,0.6943181]
[1750384888636,59.1455338,2530.3,2530.2,0.6943181]
[1750384889619,59.1311338,2530.3,2530.2,0.6943181]
[1750384889836,52.76078157,2530.3,2530.2,0.6943181]
[1750384889988,59.14278157,2530.3,2530.2,0.6943181]
[1750384890189,59.14277191,2530.3,2530.2,0.6943181]
[1750384890454,59.13037191,2530.3,2530.2,0.6943181]
[1750384890615,59.14277191,2530.3,2530.2,0.6943181]
[1750384891249,59.14277047,2530.3,2530.2,0.6943181]
[1750384893246,58.77274728,2530.3,2530.2,0.6943181]
[1750384893546,59.14251543,2530.3,2530.2,0.6943181]
[1750384894049,59.14251584,2530.3,2530.2,0.6943181]
[1750384894254,59.14246589,2530.3,2530.2,0.6943181]
[1750384895649,59.14236166,2530.3,2530.2,0.6943181]
[1750384895820,59.12996164,2530.3,2530.2,0.6943181]
[1750384896337,51.11596164,2530.3,2530.2,0.6943181]
[1750384896539,59.12996164,2530.3,2530.2,0.6943181]
[1750384896916,51.11596164,2530.3,2530.2,0.6943181]
[1750384897132,59.12991282,2530.3,2530.2,0.6943181]
[1750384898008,52.74791282,2530.3,2530.2,0.6943181]
[1750384898214,19.76431282,2530.3,2530.2,0.6943181]
[1750384898551,25.36180362,2530.3,2530.2,0.7550181]
[1750384898849,25.73128556,2530.3,2530.2,0.7550181]
[1750384899929,25.73128837,2530.3,2530.2,0.7550181]
[1750384900959,25.73128837,2530.3,2530.2,0.6943181]
[1750384901108,28.78004165,2530.3,2530.2,0.6943181]
[1750384901307,28.4105569,2530.3,2530.2,0.6943181]
[1750384901508,28.78012927,2530.3,2530.2,0.6943181]
[1750384902245,28.78012671,2530.3,2530.2,0.6943181]
[1750384903440,28.780182,2530.3,2530.2,0.6943181]
[1750384903640,29.330182,2530.3,2530.2,0.6943181]
[1750384903819,29.33018163,2530.3,2530.2,0.6943181]
[1750384904014,28.9605569,2530.3,2530.2,0.6943181]
[1750384904226,29.33018075,2530.3,2530.2,0.6943181]
[1750384904546,28.9605569,2530.3,2530.2,0.6943181]
[1750384904738,29.33018194,2530.3,2530.2,0.6943181]
[1750384905551,29.3302099,2530.3,2530.2,0.6943181]
[1750384905752,29.33020935,2530.3,2530.2,0.6943181]
[1750384906553,29.33026541,2530.3,2530.2,0.6943181]
[1750384907948,22.94826541,2530.3,2530.2,0.6943181]
[1750384908111,29.32926541,2530.3,2530.2,0.7550181]
[1750384908517,28.9595569,2530.3,2530.2,0.7550181]
[1750384908724,29.32932701,2530.3,2530.2,0.7550181]
[1750384908928,29.32932701,2530.3,2530.2,0.6943181]
[1750384910755,29.32932701,2530.3,2530.2,0.7550181]
[1750384911169,29.32950657,2530.3,2530.2,0.7550181]
[1750384911457,28.9595569,2530.3,2530.2,0.7550181]
[1750384911672,29.32950387,2530.3,2530.2,0.7550181]
[1750384913186,29.32955548,2530.3,2530.2,0.7550181]
[1750384913561,29.32955546,2530.3,2530.2,0.7550181]
[1750384914073,29.3297397,2530.3,2530.2,0.7550181]
[1750384914592,29.32973907,2530.3,2530.2,0.7550181]
[1750384915150,29.32977704,2530.3,2530.2,0.6943181]
[1750384915372,29.32977825,2530.3,2530.2,0.6943181]
[1750384916186,29.33008948,2530.3,2530.2,0.6943181]
[1750384916387,29.33008954,2530.3,2530.2,0.6943181]
[1750384916948,29.33008954,2530.3,2530.2,0.7550181]
[1750384917491,29.33008619,2530.3,2530.2,0.7550181]
[1750384917674,29.33008552,2530.3,2530.2,0.7550181]
[1750384919964,25.73133224,2530.3,2530.2,0.7550181]
[1750384920270,25.73139764,2530.3,2530.2,0.7550181]
[1750384921700,25.73140751,2530.3,2530.2,0.7550181]
[1750384921856,25.73140821,2530.3,2530.2,0.7550181]
[1750384922393,25.73144603,2530.3,2530.2,0.7550181]
[1750384922551,25.73145673,2530.3,2530.2,0.7550181]
[1750384922752,25.7314566,2530.3,2530.2,0.7550181]
[1750384923696,25.73145637,2530.3,2530.2,0.7550181]
[1750384924092,25.73145643,2530.3,2530.2,0.7550181]
[1750384925181,25.73145643,2530.3,2530.2,0.49783082]
[1750384925590,25.73154317,2530.3,2530.2,0.49783082]
[1750384925797,25.72854317,2530.3,2530.2,0.49783082]
[1750384925995,25.72853322,2530.3,2530.2,0.49783082]
[1750384926296,25.72853307,2530.3,2530.2,0.49783082]
[1750384927100,25.35780362,2530.3,2530.2,0.49783082]
[1750384927257,25.72853484,2530.3,2530.2,0.49783082]
[1750384927658,25.7285348,2530.3,2530.2,0.49783082]
[1750384928516,25.72866089,2530.3,2530.2,0.49783082]
[1750384929315,25.72866189,2530.3,2530.2,0.49783082]
[1750384929478,25.72866115,2530.3,2530.2,0.49783082]
[1750384929677,25.72865998,2530.3,2530.2,0.49783082]
[1750384929878,25.72865972,2530.3,2530.2,0.49783082]
[1750384930511,17.71865972,2530.3,2530.2,0.49783082]
[1750384930691,28.92475013,2530.3,2530.2,0.49783082]
[1750384931415,28.92477932,2530.3,2530.2,0.49783082]
[1750384932025,29.47477932,2530.3,2530.2,0.43713082]
[1750384932174,30.26257932,2530.3,2530.2,0.43713082]
[1750384932919,37.14333637,2530.3,2530.2,0.43713082]
[1750384933092,37.15573637,2530.3,2530.2,0.05132309]
[1750384933725,37.15577033,2530.3,2530.2,0.05132309]
[1750384934237,29.89169403,2530.3,2530.2,0.05132309]
[1750384934384,30.26260291,2530.3,2530.2,0.05132309]
[1750384935084,30.26255653,2530.3,2530.2,0.05132309]
[1750384935645,30.26255663,2530.3,2530.2,0.05132309]
[1750384935997,60.26255655,2530.3,2530.2,0.05132309]
[1750384936221,60.26255409,2530.3,2530.2,0.05132309]
[1750384936535,60.26255499,2530.3,2530.2,0.05132309]
[1750384936697,59.89169403,2530.3,2530.2,0.05132309]
[1750384936898,60.26255493,2530.3,2530.2,0.05132309]
[1750384937094,59.89169403,2530.3,2530.2,0.05132309]
[1750384937313,60.26255492,2530.3,2530.2,0.05132309]
[1750384939029,65.76858621,2530.3,2530.2,0.05132309]
[1750384939940,65.76847596,2530.3,2530.2,0.05132309]
[1750384940230,10.55,2530.0,2529.9,0.0609]
[1750384940434,17.29975064,2530.0,2529.9,0.0609]
[1750384941232,17.29974983,2530.0,2529.9,0.0609]
[1750384942122,17.29973478,2530.0,2529.9,0.0609]
[1750384942751,17.29973081,2530.0,2529.9,0.0609]
[1750384943545,18.92873081,2530.0,2529.9,0.0609]
[1750384944113,8.37871951,2530.0,2529.9,0.8447]
[1750384944812,8.37871606,2530.0,2529.9,0.8447]
[1750384945558,18.37871606,2530.0,2529.9,0.0609]
[1750384946058,18.37872527,2530.0,2529.9,0.0609]
[1750384946558,18.3787238,2530.0,2529.9,0.0609]
[1750384948338,18.008,2530.0,2529.9,0.0609]
[1750384948539,18.37872256,2530.0,2529.9,0.0609]
[1750384949761,14.5027254,2529.9,2529.8,1.77548209]
[1750384950047,20.37947925,2529.9,2529.8,1.77548209]
[1750384950408,20.37953906,2529.9,2529.8,1.77548209]
[1750384950977,14.87350777,2529.9,2529.8,1.77548209]
[1750384951252,14.5027254,2529.9,2529.8,1.77548209]
[1750384951459,18.65339373,2529.9,2529.8,1.77548209]
[1750384952659,18.65312117,2529.9,2529.8,1.77548209]
[1750384954136,18.65300345,2529.9,2529.8,1.83638209]
[1750384954547,11.99939271,2529.9,2529.8,1.83638209]
[1750384954762,22.33011811,2529.9,2529.8,1.83638209]
[1750384954961,18.37739271,2529.9,2529.8,1.83638209]
[1750384955126,8.37839271,2529.9,2529.8,1.83638209]
[1750384955464,0.37039271,2529.9,2529.8,1.83638209]
[1750384955664,8.37839271,2529.9,2529.8,2.65528209]
[1750384955844,8.37839271,2529.9,2529.8,3.715367]
[1750384956322,8.37839271,2529.9,2529.8,2.65528209]
[1750384956946,8.3783326,2529.9,2529.8,2.65528209]
[1750384957561,8.37835013,2529.9,2529.8,2.65528209]
[1750384959757,8.37735013,2529.9,2529.8,6.60816374]
[1750384959962,8.37735013,2529.9,2529.8,2.65528209]
[1750384960346,8.29632013,2529.9,2529.8,2.65528209]
[1750384960547,8.37735013,2529.9,2529.8,3.71141979]
[1750384960732,8.37737209,2529.9,2529.8,3.71141979]
[1750384961440,8.37737209,2529.9,2529.8,2.65528209]
[1750384961639,8.37739507,2529.9,2529.8,2.65528209]
[1750384961866,12.33012067,2529.9,2529.8,1.77548209]
[1750384962030,12.33013605,2529.9,2529.8,1.83378209]
[1750384962368,12.3301487,2529.9,2529.8,1.83378209]
[1750384963138,10.3704233,2529.9,2529.8,1.77548209]
[1750384963461,22.33016243,2529.9,2529.8,1.77548209]
[1750384963852,22.33016405,2529.9,2529.8,1.77548209]
[1750384965170,22.33015846,2529.9,2529.8,1.77548209]
[1750384965465,21.9597254,2529.9,2529.8,1.77548209]
[1750384965669,22.33016775,2529.9,2529.8,1.77548209]
[1750384966427,22.33016775,2529.9,2529.8,1.83378209]
[1750384967468,22.33016148,2529.9,2529.8,1.83378209]
[1750384967965,21.9597254,2529.9,2529.8,1.83378209]
[1750384968272,22.33015935,2529.9,2529.8,1.83378209]
[1750384968763,18.37743395,2529.9,2529.8,1.83378209]
[1750384968971,22.33015935,2529.9,2529.8,1.83378209]
[1750384969636,21.9597254,2529.9,2529.8,1.83378209]
[1750384969837,22.33016218,2529.9,2529.8,1.83378209]
[1750384970875,10.37043364,2529.9,2529.8,1.83378209]
[1750384971049,18.38443364,2529.9,2529.8,1.83378209]
[1750384973582,18.014,2529.9,2529.8,1.83378209]
[1750384973886,18.38445567,2529.9,2529.8,1.83378209]
[1750384974286,12.00145567,2529.9,2529.8,1.83378209]
[1750384974457,18.38345567,2529.9,2529.8,1.83378209]
[1750384974774,18.013,2529.9,2529.8,1.83378209]
[1750384974979,18.38344756,2529.9,2529.8,1.83378209]
[1750384975586,18.38346982,2529.9,2529.8,1.83378209]
[1750384976460,18.38347406,2529.9,2529.8,1.83378209]
[1750384979305,18.38348327,2529.9,2529.8,1.83378209]
[1750384980704,22.33620867,2529.9,2529.8,1.83378209]
[1750384981000,22.33623417,2529.9,2529.8,1.83378209]
[1750384981202,10.37050877,2529.9,2529.8,1.83378209]
[1750384981403,18.38050877,2529.9,2529.8,1.83378209]
[1750384981897,18.38056666,2529.9,2529.8,1.83378209]
[1750384984097,18.01,2529.9,2529.8,1.83378209]
[1750384984327,18.38065273,2529.9,2529.8,1.83378209]
[1750384984504,22.33337813,2529.9,2529.8,1.83378209]
[1750384984799,22.33339204,2529.9,2529.8,1.83378209]
[1750384985406,12.33339204,2529.9,2529.8,1.83378209]
[1750384986466,12.33340547,2529.9,2529.8,1.83378209]
[1750384987316,11.9627254,2529.9,2529.8,1.83378209]
[1750384987502,22.33340608,2529.9,2529.8,1.83378209]
[1750384987820,22.88340608,2529.9,2529.8,1.77548209]
[1750384987996,22.88340608,2529.9,2529.8,1.5182308]
[1750384987997,64.14596395,2529.9,2529.8,1.5182308]
[1750384988214,64.14596395,2529.9,2529.8,1.13235341]
[1750384988851,64.14596395,2529.9,2529.3,0.69547029]
[1750384988852,45.28790676,2529.4,2529.3,0.69547029]
[1750384989135,64.89757347,2529.4,2529.3,0.69547029]
[1750384989444,64.89757347,2529.4,2528.9,1.88016529]
[1750384989596,45.33153206,2529.0,2528.9,1.88016529]
[1750384989797,52.08521274,2529.0,2528.9,1.88016529]
[1750384990034,52.08523446,2529.0,2528.9,1.88016529]
[1750384990343,54.32670038,2529.0,2528.9,1.88016529]
[1750384990488,54.32579738,2529.0,2528.9,1.88016529]
[1750384991114,54.32580789,2529.0,2528.9,1.88016529]
[1750384991636,61.21017322,2529.0,2528.9,1.88016529]
[1750384992423,61.20973716,2529.0,2528.9,1.88016529]
[1750384992786,68.09410256,2529.0,2528.9,1.88016529]
[1750384992990,61.40721097,2529.0,2528.9,1.88016529]
[1750384993187,61.03783705,2529.0,2528.9,1.88016529]
[1750384993398,61.20971923,2529.0,2528.9,1.88016529]
[1750384993602,55.9653539,2529.0,2528.9,1.88016529]
[1750384994726,55.96490758,2529.0,2528.9,1.88016529]
[1750384995229,55.96490783,2529.0,2528.9,1.88016529]
[1750384995609,55.96483997,2529.0,2528.9,1.88016529]
[1750384996528,55.96461464,2529.0,2528.9,1.88016529]
[1750384998195,55.59599798,2529.0,2528.9,1.88016529]
[1750384998526,55.96455927,2529.0,2528.9,1.88016529]
[1750384998731,55.9644018,2529.0,2528.9,1.88016529]
[1750384999123,55.96440095,2529.0,2528.9,1.88016529]
[1750385000323,62.84876628,2529.0,2528.9,1.88016529]
[1750385001124,62.84860309,2529.0,2528.9,1.88016529]
[1750385002539,62.84851417,2529.0,2528.9,1.88016529]
[1750385003142,62.48036331,2529.0,2528.9,1.88016529]
[1750385003354,72.3505151,2529.0,2528.9,1.88016529]
[1750385004541,70.7185151,2529.0,2528.9,1.88016529]
[1750385004744,65.47214977,2529.0,2528.9,1.88016529]
[1750385005131,35.47214977,2529.0,2528.9,1.88016529]
[1750385005338,65.47214977,2529.0,2528.9,1.88016529]
[1750385005526,65.47215406,2529.0,2528.9,1.88016529]
[1750385006226,35.47215406,2529.0,2528.9,1.88016529]
[1750385006426,65.47215406,2529.0,2528.9,1.88016529]
[1750385006652,65.47218331,2529.0,2528.9,1.88016529]
[1750385007447,57.44318331,2529.0,2528.9,1.88016529]
[1750385007647,65.47218331,2529.0,2528.9,1.88016529]
[1750385008108,56.61591763,2529.0,2528.9,1.88016529]
[1750385008312,62.40245171,2529.0,2528.9,1.94056529]
[1750385008536,43.82445171,2529.0,2528.9,1.94056529]
[1750385008745,17.89929067,2529.0,2528.9,1.94056529]
[1750385008937,27.89929067,2529.0,2528.9,1.94056529]
[1750385010333,11.506427,2529.0,2528.9,1.94056529]
[1750385010539,9.502,2529.0,2528.9,6.16552024]
[1750385010846,27.531,2529.0,2528.9,6.92802024]
[1750385011921,27.531,2529.0,2528.9,2.97373182]
[1750385011922,27.89946499,2529.0,2528.9,2.97373182]
[1750385012346,27.89947012,2529.0,2528.9,2.97373182]
[1750385012543,27.89947012,2529.0,2528.9,2.70306529]
[1750385012748,21.50647012,2529.0,2528.9,2.70306529]
[1750385012947,27.89847012,2529.0,2528.9,2.70306529]
[1750385014059,27.89647012,2529.0,2528.9,2.70306529]
[1750385014562,27.8970483,2529.0,2528.9,2.70306529]
[1750385014925,27.8970479,2529.0,2528.9,2.70306529]
[1750385015255,21.5060479,2529.0,2528.9,2.70306529]
[1750385015460,27.8960479,2529.0,2528.9,6.65735371]
[1750385017558,27.89550505,2529.0,2528.9,7.71853326]
[1750385018221,27.89550494,2529.0,2528.9,7.71853326]
[1750385018723,19.87150494,2529.0,2528.9,7.71853326]
[1750385018947,27.89650494,2529.0,2528.9,7.71853326]
[1750385019332,27.89669401,2529.0,2528.9,7.71853326]
[1750385021065,27.527,2529.0,2528.9,7.71853326]
[1750385021254,27.89663728,2529.0,2528.9,7.71853326]
[1750385021629,11.50663728,2529.0,2528.9,7.71853326]
[1750385021829,17.89563728,2529.0,2528.9,7.71853326]
[1750385022344,11.50663728,2529.0,2528.9,7.71853326]
[1750385022664,17.526,2529.0,2528.9,7.71853326]
[1750385032243,8.024,2529.0,2528.9,7.71853326]
[1750385034797,1.635,2529.0,2528.9,7.71853326]
[1750385034954,8.019,2529.0,2528.9,7.75807168]
[1750385036584,10.0,2529.6,2529.1,3.95388705]
[1750385036789,10.0,2529.4,2529.3,4.01541469]
[1750385037089,10.36989471,2529.4,2529.3,4.01541469]
[1750385038080,18.3853597,2529.4,2529.3,4.01541469]
[1750385038775,18.38534615,2529.4,2529.3,4.01541469]